[Event "Titled Tuesday Blitz February 22 Early 2022"]
[White "Mikhailovsky, Vladimir"]
[Black "Martirosyan, Haik M."]
[WhiteFideId "34105414"]
[BlackFideId "13306553"]
[WhiteElo "2371"]
[BlackElo "2735"]
[Result "0-1"]
[Round "07"]
[TimeControl "180+1"]
[Date "2022.02.22"]
[WhiteClock "0:00:04"]
[BlackClock "0:00:57"]

1. e4 {[%clk 0:02:59]}  e6 {[%clk 0:02:59]} 2. Qe2 {[%clk 0:02:59]}  d5 {[%clk 0:03:00]} 3. exd5 {[%clk 0:02:59]}  Qxd5 {[%clk 0:03:01]} 4. Nc3 {[%clk 0:03:00]}  Qd8 {[%clk 0:03:01]} 5. Nf3 {[%clk 0:03:01]}  Nf6 {[%clk 0:03:00]} 6. g3 {[%clk 0:03:01]}  b6 {[%clk 0:02:58]} 7. Bg2 {[%clk 0:03:01]}  Bb7 {[%clk 0:02:59]} 8. O-O {[%clk 0:03:01]}  Be7 {[%clk 0:02:59]} 9. d4 {[%clk 0:03:01]}  O-O {[%clk 0:03:00]} 10. Rd1 {[%clk 0:03:02]}  Nbd7 {[%clk 0:02:59]} 11. Ne5 {[%clk 0:03:01]}  Bxg2 {[%clk 0:02:59]} 12. Kxg2 {[%clk 0:03:02]}  Qc8 {[%clk 0:02:56]} 13. Nc6 {[%clk 0:03:00]}  Bd6 {[%clk 0:02:53]} 14. Qf3 {[%clk 0:02:59]}  Kh8 {[%clk 0:02:46]} 15. b4 {[%clk 0:02:29]}  Qb7 {[%clk 0:02:42]} 16. a4 {[%clk 0:02:22]}  Nd5 {[%clk 0:02:32]} 17. b5 {[%clk 0:02:14]}  Nxc3 {[%clk 0:02:28]} 18. Qxc3 {[%clk 0:02:15]}  Nb8 {[%clk 0:02:21]} 19. d5 {[%clk 0:02:08]}  exd5 {[%clk 0:02:18]} 20. Bb2 {[%clk 0:01:48]}  f6 {[%clk 0:02:17]} 21. Rxd5 {[%clk 0:01:48]}  Bc5 {[%clk 0:01:44]} 22. a5 {[%clk 0:01:03]}  Nxc6 {[%clk 0:01:42]} 23. a6 {[%clk 0:01:03]}  Qc8 {[%clk 0:01:43]} 24. bxc6 {[%clk 0:01:03]}  Qe6 {[%clk 0:01:43]} 25. Rad1 {[%clk 0:00:52]}  Qxc6 {[%clk 0:01:28]} 26. Qf3 {[%clk 0:00:51]}  Bd6 {[%clk 0:01:18]} 27. h4 {[%clk 0:00:38]}  Qxc2 {[%clk 0:01:17]} 28. R1d2 {[%clk 0:00:38]}  Qc6 {[%clk 0:01:15]} 29. h5 {[%clk 0:00:38]}  h6 {[%clk 0:01:16]} 30. Kh2 {[%clk 0:00:36]}  Rae8 {[%clk 0:01:15]} 31. Qf5 {[%clk 0:00:34]}  Re7 {[%clk 0:01:12]} 32. Bd4 {[%clk 0:00:18]}  Qd7 {[%clk 0:01:04]} 33. Qg6 {[%clk 0:00:14]}  Bxg3+ {[%clk 0:01:03]} 34. Kxg3 {[%clk 0:00:09]}  Qxd5 {[%clk 0:01:03]} 35. Bxf6 {[%clk 0:00:09]}  Qxd2 {[%clk 0:00:57]} 36. Bxe7 {[%clk 0:00:04]}  Qxf2+ {[%clk 0:00:57]} 0-1


[Site "https://www.chess.com"]

[Event "Titled Tuesday Blitz February 22 Early 2022"]
[White "Moskvin, Anatoly"]
[Black "Zhu, Jiner"]
[WhiteFideId "24199990"]
[BlackFideId "8608059"]
[WhiteElo "2079"]
[BlackElo "2281"]
[Result "0-1"]
[Round "07"]
[TimeControl "180+1"]
[Date "2022.02.22"]
[WhiteClock "0:00:01"]
[BlackClock "0:00:11"]

1. e4 {[%clk 0:03:00]}  e5 {[%clk 0:02:59]} 2. Nf3 {[%clk 0:02:59]}  Nc6 {[%clk 0:02:59]} 3. Bc4 {[%clk 0:02:59]}  Nf6 {[%clk 0:02:56]} 4. d3 {[%clk 0:03:00]}  Be7 {[%clk 0:02:53]} 5. c3 {[%clk 0:03:00]}  d6 {[%clk 0:02:51]} 6. Nbd2 {[%clk 0:02:57]}  O-O {[%clk 0:02:50]} 7. Bb3 {[%clk 0:02:57]}  Kh8 {[%clk 0:02:49]} 8. h3 {[%clk 0:02:55]}  a5 {[%clk 0:02:36]} 9. a4 {[%clk 0:02:55]}  Be6 {[%clk 0:02:35]} 10. Bc2 {[%clk 0:02:55]}  h6 {[%clk 0:02:34]} 11. Nf1 {[%clk 0:02:53]}  d5 {[%clk 0:02:31]} 12. Qe2 {[%clk 0:02:53]}  dxe4 {[%clk 0:02:25]} 13. dxe4 {[%clk 0:02:53]}  Nd7 {[%clk 0:02:00]} 14. Be3 {[%clk 0:02:22]}  Nc5 {[%clk 0:01:51]} 15. Ng3 {[%clk 0:02:02]}  Re8 {[%clk 0:01:41]} 16. Rd1 {[%clk 0:01:58]}  Qc8 {[%clk 0:01:41]} 17. Nh2 {[%clk 0:01:41]}  Bf8 {[%clk 0:01:37]} 18. Ng4 {[%clk 0:01:40]}  b6 {[%clk 0:01:33]} 19. O-O {[%clk 0:01:14]}  Qa6 {[%clk 0:01:33]} 20. Qf3 {[%clk 0:00:47]}  Rad8 {[%clk 0:01:00]} 21. Rd5 {[%clk 0:00:34]}  Qc4 {[%clk 0:00:35]} 22. Rfd1 {[%clk 0:00:28]}  Bxd5 {[%clk 0:00:30]} 23. exd5 {[%clk 0:00:29]}  e4 {[%clk 0:00:25]} 24. Qxf7 {[%clk 0:00:27]}  Ne5 {[%clk 0:00:21]} 25. Nxe5 {[%clk 0:00:25]}  Rxe5 {[%clk 0:00:22]} 26. Bd4 {[%clk 0:00:20]}  Re7 {[%clk 0:00:17]} 27. Bxg7+ {[%clk 0:00:15]}  Bxg7 {[%clk 0:00:16]} 28. Qxe7 {[%clk 0:00:15]}  Rf8 {[%clk 0:00:14]} 29. Nxe4 {[%clk 0:00:14]}  Qe2 {[%clk 0:00:14]} 30. Rf1 {[%clk 0:00:04]}  Qxc2 {[%clk 0:00:14]} 31. Nxc5 {[%clk 0:00:05]}  bxc5 {[%clk 0:00:15]} 32. Qxc5 {[%clk 0:00:06]}  Qxb2 {[%clk 0:00:14]} 33. Qxc7 {[%clk 0:00:06]}  Qxc3 {[%clk 0:00:14]} 34. Qb7 {[%clk 0:00:06]}  Qb4 {[%clk 0:00:14]} 35. Qc6 {[%clk 0:00:05]}  Rd8 {[%clk 0:00:14]} 36. Rd1 {[%clk 0:00:05]}  Qd6 {[%clk 0:00:14]} 37. Qc4 {[%clk 0:00:05]}  Rf8 {[%clk 0:00:14]} 38. Qb5 {[%clk 0:00:05]}  Qf4 {[%clk 0:00:14]} 39. Rf1 {[%clk 0:00:04]}  Qb4 {[%clk 0:00:14]} 40. Qc6 {[%clk 0:00:04]}  Qd4 {[%clk 0:00:15]} 41. d6 {[%clk 0:00:04]}  Rd8 {[%clk 0:00:15]} 42. Re1 {[%clk 0:00:04]}  Rxd6 {[%clk 0:00:12]} 43. Re8+ {[%clk 0:00:04]}  Kh7 {[%clk 0:00:13]} 44. Qc2+ {[%clk 0:00:04]}  Qd3 {[%clk 0:00:13]} 45. Qc8 {[%clk 0:00:03]}  Qd1+ {[%clk 0:00:13]} 46. Kh2 {[%clk 0:00:04]}  Qd5 {[%clk 0:00:14]} 47. Qc2+ {[%clk 0:00:02]}  Qd3 {[%clk 0:00:14]} 48. Qc8 {[%clk 0:00:03]}  Rf6 {[%clk 0:00:11]} 49. Qb8 {[%clk 0:00:02]}  Qd6+ {[%clk 0:00:11]} 50. Qxd6 {[%clk 0:00:02]}  Rxd6 {[%clk 0:00:12]} 51. Ra8 {[%clk 0:00:02]}  Rd5 {[%clk 0:00:12]} 52. Kg3 {[%clk 0:00:02]}  Bc3 {[%clk 0:00:13]} 53. Kf3 {[%clk 0:00:02]}  Rd4 {[%clk 0:00:13]} 54. Ra7+ {[%clk 0:00:02]}  Kg6 {[%clk 0:00:13]} 55. Ra6+ {[%clk 0:00:02]}  Kg7 {[%clk 0:00:14]} 56. Ra7+ {[%clk 0:00:02]}  Kf8 {[%clk 0:00:14]} 57. Ra8+ {[%clk 0:00:03]}  Ke7 {[%clk 0:00:15]} 58. Ra7+ {[%clk 0:00:03]}  Rd7 {[%clk 0:00:15]} 59. Ra6 {[%clk 0:00:04]}  Bd2 {[%clk 0:00:14]} 60. Ke2 {[%clk 0:00:04]}  Rd5 {[%clk 0:00:14]} 61. g4 {[%clk 0:00:03]}  Bf4 {[%clk 0:00:14]} 62. Kf3 {[%clk 0:00:03]}  Bg5 {[%clk 0:00:13]} 63. Ke4 {[%clk 0:00:04]}  Rc5 {[%clk 0:00:13]} 64. Kd4 {[%clk 0:00:04]}  Rc2 {[%clk 0:00:12]} 65. Rxa5 {[%clk 0:00:04]}  Rxf2 {[%clk 0:00:13]} 66. Ra7+ {[%clk 0:00:04]}  Kd6 {[%clk 0:00:13]} 67. Ra6+ {[%clk 0:00:04]}  Kc7 {[%clk 0:00:13]} 68. h4 {[%clk 0:00:05]}  Bxh4 {[%clk 0:00:13]} 69. Rxh6 {[%clk 0:00:05]}  Rf4+ {[%clk 0:00:14]} 70. Kd5 {[%clk 0:00:04]}  Rxg4 {[%clk 0:00:14]} 71. a5 {[%clk 0:00:04]}  Kb7 {[%clk 0:00:13]} 72. a6+ {[%clk 0:00:03]}  Ka7 {[%clk 0:00:14]} 73. Kc6 {[%clk 0:00:03]}  Bf2 {[%clk 0:00:14]} 74. Kb5 {[%clk 0:00:04]}  Rg5+ {[%clk 0:00:14]} 75. Kb4 {[%clk 0:00:04]}  Bb6 {[%clk 0:00:15]} 76. Rh7+ {[%clk 0:00:03]}  Kxa6 {[%clk 0:00:15]} 77. Rh6 {[%clk 0:00:04]}  Rg4+ {[%clk 0:00:15]} 78. Kb3 {[%clk 0:00:04]}  Kb5 {[%clk 0:00:15]} 79. Rh5+ {[%clk 0:00:03]}  Bc5 {[%clk 0:00:16]} 80. Rh2 {[%clk 0:00:04]}  Ra4 {[%clk 0:00:15]} 81. Kb2 {[%clk 0:00:03]}  Re4 {[%clk 0:00:15]} 82. Kb3 {[%clk 0:00:03]}  Re3+ {[%clk 0:00:15]} 83. Kb2 {[%clk 0:00:04]}  Kc4 {[%clk 0:00:15]} 84. Rg2 {[%clk 0:00:04]}  Bd4+ {[%clk 0:00:16]} 85. Kc2 {[%clk 0:00:04]}  Ra3 {[%clk 0:00:16]} 86. Rg8 {[%clk 0:00:02]}  Ra2+ {[%clk 0:00:16]} 87. Kb1 {[%clk 0:00:02]}  Ra1+ {[%clk 0:00:16]} 88. Kc2 {[%clk 0:00:02]}  Ra2+ {[%clk 0:00:16]} 89. Kb1 {[%clk 0:00:02]}  Rb2+ {[%clk 0:00:17]} 90. Kc1 {[%clk 0:00:03]}  Rh2 {[%clk 0:00:18]} 91. Kb1 {[%clk 0:00:03]}  Bc3 {[%clk 0:00:17]} 92. Rc8+ {[%clk 0:00:03]}  Kb3 {[%clk 0:00:18]} 93. Rb8+ {[%clk 0:00:03]}  Bb4 {[%clk 0:00:18]} 94. Rc8 {[%clk 0:00:03]}  Bd6 {[%clk 0:00:16]} 95. Rc6 {[%clk 0:00:03]}  Ba3 {[%clk 0:00:15]} 96. Rb6+ {[%clk 0:00:03]}  Bb4 {[%clk 0:00:16]} 97. Rc6 {[%clk 0:00:03]}  Ba5 {[%clk 0:00:11]} 98. Rc5 {[%clk 0:00:02]}  Bc3 {[%clk 0:00:10]} 99. Rb5+ {[%clk 0:00:02]}  Bb4 {[%clk 0:00:11]} 100. Rd5 {[%clk 0:00:01]}  Rh1+ {[%clk 0:00:11]} 0-1


[Site "https://www.chess.com"]

[Event "Titled Tuesday Blitz February 22 Early 2022"]
[White "Narayanan.S.L"]
[Black "Shahaliyev, Ismayil"]
[WhiteFideId "5058422"]
[BlackFideId "13406388"]
[WhiteElo "2494"]
[BlackElo "2105"]
[Result "1-0"]
[Round "07"]
[TimeControl "180+1"]
[Date "2022.02.22"]
[WhiteClock "0:01:30"]
[BlackClock "0:00:03"]

1. Nf3 {[%clk 0:03:00]}  Nf6 {[%clk 0:03:00]} 2. b3 {[%clk 0:03:00]}  c5 {[%clk 0:02:59]} 3. Bb2 {[%clk 0:03:01]}  Nc6 {[%clk 0:02:59]} 4. e3 {[%clk 0:03:01]}  e6 {[%clk 0:02:57]} 5. d4 {[%clk 0:03:01]}  Be7 {[%clk 0:02:51]} 6. c4 {[%clk 0:03:00]}  cxd4 {[%clk 0:02:49]} 7. Nxd4 {[%clk 0:02:59]}  d5 {[%clk 0:02:48]} 8. Nxc6 {[%clk 0:02:58]}  bxc6 {[%clk 0:02:48]} 9. Be2 {[%clk 0:02:59]}  Bb4+ {[%clk 0:02:44]} 10. Bc3 {[%clk 0:02:58]}  Qa5 {[%clk 0:02:39]} 11. Qd2 {[%clk 0:02:56]}  Bxc3 {[%clk 0:02:33]} 12. Qxc3 {[%clk 0:02:51]}  Qb6 {[%clk 0:02:21]} 13. Nd2 {[%clk 0:02:49]}  O-O {[%clk 0:02:21]} 14. O-O {[%clk 0:02:49]}  a5 {[%clk 0:02:21]} 15. Rfc1 {[%clk 0:02:49]}  Ba6 {[%clk 0:02:17]} 16. h3 {[%clk 0:02:10]}  h6 {[%clk 0:02:12]} 17. Bd3 {[%clk 0:02:09]}  Rfd8 {[%clk 0:02:05]} 18. Nf3 {[%clk 0:02:09]}  c5 {[%clk 0:01:56]} 19. Qc2 {[%clk 0:02:00]}  d4 {[%clk 0:01:50]} 20. exd4 {[%clk 0:02:00]}  cxd4 {[%clk 0:01:51]} 21. c5 {[%clk 0:02:00]}  Qc7 {[%clk 0:01:38]} 22. Bxa6 {[%clk 0:01:58]}  Rxa6 {[%clk 0:01:39]} 23. Qc4 {[%clk 0:01:59]}  Raa8 {[%clk 0:00:52]} 24. Nxd4 {[%clk 0:01:59]}  Nd5 {[%clk 0:00:53]} 25. c6 {[%clk 0:01:57]}  Rdb8 {[%clk 0:00:51]} 26. Nb5 {[%clk 0:01:54]}  Qb6 {[%clk 0:00:51]} 27. a4 {[%clk 0:01:54]}  Rc8 {[%clk 0:00:50]} 28. Qc5 {[%clk 0:01:53]}  Ra6 {[%clk 0:00:45]} 29. c7 {[%clk 0:01:52]}  Qxc5 {[%clk 0:00:38]} 30. Rxc5 {[%clk 0:01:52]}  Kf8 {[%clk 0:00:39]} 31. Rac1 {[%clk 0:01:51]}  Ke7 {[%clk 0:00:39]} 32. Kf1 {[%clk 0:01:45]}  Kd7 {[%clk 0:00:39]} 33. Ke2 {[%clk 0:01:42]}  Rb6 {[%clk 0:00:37]} 34. Rxd5+ {[%clk 0:01:37]}  exd5 {[%clk 0:00:36]} 35. Kd3 {[%clk 0:01:38]}  Rxb5 {[%clk 0:00:30]} 36. axb5 {[%clk 0:01:38]}  Rxc7 {[%clk 0:00:30]} 37. Ra1 {[%clk 0:01:39]}  Ra7 {[%clk 0:00:18]} 38. Kd4 {[%clk 0:01:39]}  Kd6 {[%clk 0:00:18]} 39. Rc1 {[%clk 0:01:39]}  a4 {[%clk 0:00:17]} 40. Rc6+ {[%clk 0:01:37]}  Kd7 {[%clk 0:00:18]} 41. bxa4 {[%clk 0:01:38]}  Rxa4+ {[%clk 0:00:19]} 42. Kxd5 {[%clk 0:01:38]}  Ra2 {[%clk 0:00:19]} 43. Rd6+ {[%clk 0:01:32]}  Kc7 {[%clk 0:00:19]} 44. b6+ {[%clk 0:01:29]}  Kb7 {[%clk 0:00:19]} 45. Rd7+ {[%clk 0:01:29]}  Kxb6 {[%clk 0:00:19]} 46. Rxf7 {[%clk 0:01:30]}  Ra5+ {[%clk 0:00:16]} 47. Ke6 {[%clk 0:01:30]}  Rg5 {[%clk 0:00:15]} 48. g4 {[%clk 0:01:30]}  h5 {[%clk 0:00:15]} 49. f4 {[%clk 0:01:30]}  Rg6+ {[%clk 0:00:13]} 50. Kf5 {[%clk 0:01:30]}  Rh6 {[%clk 0:00:02]} 51. Rxg7 {[%clk 0:01:30]}  hxg4 {[%clk 0:00:03]} 52. hxg4 {[%clk 0:01:30]} 1-0


[Site "https://www.chess.com"]

[Event "Titled Tuesday Blitz February 22 Early 2022"]
[White "Nesterov, Arseniy"]
[Black "Dziththauly, Ramadhan"]
[WhiteFideId "24198455"]
[BlackFideId "7105525"]
[WhiteElo "2489"]
[BlackElo "2585"]
[Result "1-0"]
[Round "07"]
[TimeControl "180+1"]
[Date "2022.02.22"]
[WhiteClock "0:00:06"]
[BlackClock "0:00:11"]

1. d4 {[%clk 0:03:00]}  Nf6 {[%clk 0:02:59]} 2. c4 {[%clk 0:03:01]}  e6 {[%clk 0:02:59]} 3. Nf3 {[%clk 0:03:00]}  b6 {[%clk 0:02:59]} 4. g3 {[%clk 0:02:57]}  Bb7 {[%clk 0:02:59]} 5. Bg2 {[%clk 0:02:57]}  c5 {[%clk 0:03:00]} 6. d5 {[%clk 0:02:52]}  exd5 {[%clk 0:03:00]} 7. cxd5 {[%clk 0:02:51]}  Bxd5 {[%clk 0:03:00]} 8. Nc3 {[%clk 0:02:50]}  Bc6 {[%clk 0:03:01]} 9. e4 {[%clk 0:02:47]}  d6 {[%clk 0:03:01]} 10. O-O {[%clk 0:02:41]}  Be7 {[%clk 0:03:01]} 11. Nh4 {[%clk 0:02:28]}  O-O {[%clk 0:02:46]} 12. Nf5 {[%clk 0:02:26]}  Nbd7 {[%clk 0:02:34]} 13. Nxd6 {[%clk 0:02:11]}  Ne5 {[%clk 0:02:33]} 14. Nf5 {[%clk 0:02:10]}  Rc8 {[%clk 0:01:53]} 15. Bf4 {[%clk 0:01:45]}  Nfd7 {[%clk 0:01:41]} 16. Nd5 {[%clk 0:01:19]}  Bf6 {[%clk 0:01:40]} 17. Nxf6+ {[%clk 0:00:46]}  Qxf6 {[%clk 0:01:41]} 18. Qd6 {[%clk 0:00:46]}  Qxd6 {[%clk 0:01:09]} 19. Nxd6 {[%clk 0:00:46]}  Rcd8 {[%clk 0:01:09]} 20. Rfd1 {[%clk 0:00:44]}  Ng6 {[%clk 0:01:00]} 21. Be3 {[%clk 0:00:35]}  Nde5 {[%clk 0:00:59]} 22. h3 {[%clk 0:00:31]}  Ba8 {[%clk 0:00:44]} 23. f4 {[%clk 0:00:25]}  Nc6 {[%clk 0:00:44]} 24. e5 {[%clk 0:00:20]}  Nge7 {[%clk 0:00:44]} 25. a3 {[%clk 0:00:18]}  Na5 {[%clk 0:00:41]} 26. b4 {[%clk 0:00:16]}  Bxg2 {[%clk 0:00:37]} 27. Kxg2 {[%clk 0:00:15]}  cxb4 {[%clk 0:00:34]} 28. axb4 {[%clk 0:00:16]}  Nac6 {[%clk 0:00:35]} 29. b5 {[%clk 0:00:15]}  Na5 {[%clk 0:00:35]} 30. Bd2 {[%clk 0:00:16]}  Nb3 {[%clk 0:00:24]} 31. Rxa7 {[%clk 0:00:16]}  Nc8 {[%clk 0:00:24]} 32. Nxc8 {[%clk 0:00:11]}  Rxc8 {[%clk 0:00:21]} 33. Be3 {[%clk 0:00:11]}  Rc2+ {[%clk 0:00:20]} 34. Kf3 {[%clk 0:00:11]}  Rc3 {[%clk 0:00:20]} 35. Ke4 {[%clk 0:00:07]}  Rc4+ {[%clk 0:00:20]} 36. Kf5 {[%clk 0:00:05]}  Rb4 {[%clk 0:00:16]} 37. Rd5 {[%clk 0:00:05]}  g6+ {[%clk 0:00:12]} 38. Kf6 {[%clk 0:00:05]}  Rc4 {[%clk 0:00:06]} 39. Rad7 {[%clk 0:00:05]}  Na5 {[%clk 0:00:06]} 40. Rd8 {[%clk 0:00:05]}  Rc8 {[%clk 0:00:05]} 41. Rxf8+ {[%clk 0:00:05]}  Rxf8 {[%clk 0:00:05]} 42. Bxb6 {[%clk 0:00:05]}  Nc4 {[%clk 0:00:06]} 43. Bc5 {[%clk 0:00:05]}  Rc8 {[%clk 0:00:06]} 44. b6 {[%clk 0:00:05]}  h6 {[%clk 0:00:06]} 45. b7 {[%clk 0:00:04]}  Rb8 {[%clk 0:00:06]} 46. Rd7 {[%clk 0:00:04]}  Na5 {[%clk 0:00:07]} 47. Rxf7 {[%clk 0:00:04]}  Nxb7 {[%clk 0:00:07]} 48. Be7 {[%clk 0:00:03]}  Na5 {[%clk 0:00:06]} 49. Kxg6 {[%clk 0:00:03]}  Nc6 {[%clk 0:00:05]} 50. Rg7+ {[%clk 0:00:02]}  Kh8 {[%clk 0:00:06]} 51. Bf6 {[%clk 0:00:03]}  Rg8 {[%clk 0:00:06]} 52. Kxh6 {[%clk 0:00:03]}  Rxg7 {[%clk 0:00:06]} 53. Bxg7+ {[%clk 0:00:04]}  Kg8 {[%clk 0:00:07]} 54. Bf6 {[%clk 0:00:05]}  Nd4 {[%clk 0:00:07]} 55. Kg6 {[%clk 0:00:06]}  Ne6 {[%clk 0:00:08]} 56. h4 {[%clk 0:00:05]}  Nc5 {[%clk 0:00:08]} 57. h5 {[%clk 0:00:06]}  Ne6 {[%clk 0:00:08]} 58. h6 {[%clk 0:00:06]}  Nf8+ {[%clk 0:00:09]} 59. Kf5 {[%clk 0:00:06]}  Kf7 {[%clk 0:00:10]} 60. Bg7 {[%clk 0:00:05]}  Nh7 {[%clk 0:00:10]} 61. g4 {[%clk 0:00:06]}  Ke7 {[%clk 0:00:11]} 62. g5 {[%clk 0:00:06]} 1-0


[Site "https://www.chess.com"]

[Event "Titled Tuesday Blitz February 22 Early 2022"]
[White "Pajeken, Jakob Leon"]
[Black "Golubka, Petro"]
[WhiteFideId "12942839"]
[BlackFideId "14114224"]
[WhiteElo "2351"]
[BlackElo "2392"]
[Result "1-0"]
[Round "07"]
[TimeControl "180+1"]
[Date "2022.02.22"]
[WhiteClock "0:00:15"]
[BlackClock "0:00:20"]

1. Nf3 {[%clk 0:02:57]}  Nf6 {[%clk 0:02:50]} 2. d4 {[%clk 0:02:55]}  d5 {[%clk 0:02:50]} 3. c4 {[%clk 0:02:55]}  e6 {[%clk 0:02:47]} 4. e3 {[%clk 0:02:55]}  Be7 {[%clk 0:02:48]} 5. Nbd2 {[%clk 0:02:52]}  b6 {[%clk 0:02:48]} 6. Bd3 {[%clk 0:02:51]}  Bb7 {[%clk 0:02:48]} 7. O-O {[%clk 0:02:50]}  Nbd7 {[%clk 0:02:49]} 8. Qe2 {[%clk 0:02:49]}  O-O {[%clk 0:02:49]} 9. e4 {[%clk 0:02:48]}  c5 {[%clk 0:02:49]} 10. cxd5 {[%clk 0:02:44]}  exd5 {[%clk 0:02:48]} 11. e5 {[%clk 0:02:45]}  Ne8 {[%clk 0:02:48]} 12. Re1 {[%clk 0:02:37]}  Nc7 {[%clk 0:02:46]} 13. Nf1 {[%clk 0:02:31]}  Ne6 {[%clk 0:02:46]} 14. Ng3 {[%clk 0:02:32]}  g6 {[%clk 0:02:42]} 15. b3 {[%clk 0:02:26]}  a5 {[%clk 0:02:40]} 16. Bh6 {[%clk 0:02:22]}  Re8 {[%clk 0:02:38]} 17. Bb5 {[%clk 0:02:18]}  Nc7 {[%clk 0:02:37]} 18. e6 {[%clk 0:02:12]}  Nxe6 {[%clk 0:02:16]} 19. dxc5 {[%clk 0:02:11]}  bxc5 {[%clk 0:02:14]} 20. Rad1 {[%clk 0:02:06]}  Bf6 {[%clk 0:02:08]} 21. Qd2 {[%clk 0:01:58]}  Re7 {[%clk 0:02:03]} 22. h4 {[%clk 0:01:50]}  Qc7 {[%clk 0:01:56]} 23. Ng5 {[%clk 0:01:40]}  Ndf8 {[%clk 0:01:51]} 24. h5 {[%clk 0:01:18]}  Nxg5 {[%clk 0:01:46]} 25. Bxg5 {[%clk 0:01:17]}  Bxg5 {[%clk 0:01:47]} 26. Qxg5 {[%clk 0:01:16]}  Rxe1+ {[%clk 0:01:45]} 27. Rxe1 {[%clk 0:01:16]}  Qb6 {[%clk 0:01:43]} 28. h6 {[%clk 0:01:12]}  f6 {[%clk 0:01:31]} 29. Qf4 {[%clk 0:01:11]}  g5 {[%clk 0:01:13]} 30. Qf5 {[%clk 0:00:54]}  Rd8 {[%clk 0:00:49]} 31. Re7 {[%clk 0:00:48]}  Bc8 {[%clk 0:00:48]} 32. Qf3 {[%clk 0:00:37]}  g4 {[%clk 0:00:39]} 33. Qf4 {[%clk 0:00:31]}  Ng6 {[%clk 0:00:38]} 34. Rg7+ {[%clk 0:00:30]}  Kh8 {[%clk 0:00:38]} 35. Qa4 {[%clk 0:00:23]}  f5 {[%clk 0:00:25]} 36. Be8 {[%clk 0:00:18]}  f4 {[%clk 0:00:23]} 37. Bxg6 {[%clk 0:00:18]}  hxg6 {[%clk 0:00:24]} 38. Qxf4 {[%clk 0:00:18]}  Qe6 {[%clk 0:00:23]} 39. Qc7 {[%clk 0:00:15]}  Qe1+ {[%clk 0:00:20]} 40. Kh2 {[%clk 0:00:15]}  Rd7 {[%clk 0:00:20]} 41. Qxc8+ {[%clk 0:00:15]} 1-0


[Site "https://www.chess.com"]